bitfinex/quotes_ETHUSD_20240828
["timestamp","ask_amount","ask_price","bid_price","bid_amount"]
[1724856359791,3.98676,2508.3,2508.2,0.10283471]
[1724856359992,3.98835,2507.3,2506.5,2.2595]
[1724856360189,0.398835,2507.2,2506.7,3.98918]
[1724856360421,3.98695,2508.2,2506.8,4.06890059]
[1724856360422,3.98814,2507.5,2506.8,4.06890059]
[1724856360734,3.98658,2508.5,2507.2,2.2595]
[1724856360735,3.9878,2507.7,2507.2,2.2595]
[1724856360890,3.988,2507.6,2507.2,2.2595]
[1724856361090,3.9871,2508.1,2506.8,6.32887]
[1724856361091,3.9882,2507.4,2506.8,6.32887]
[1724856361442,7.9765,2507.4,2506.8,6.32893]
[1724856361653,3.98797,2507.6,2506.9,3.98896]
[1724856361938,3.98797,2507.6,2506.9,0.07976905]
[1724856362240,3.98797,2507.6,2507.0,3.98882]
[1724856362398,3.98765,2507.8,2507.3,3.98827]
[1724856362594,3.98583,2508.9,2507.4,0.07975908]
[1724856362595,3.0,2508.4,2507.4,0.07975908]
[1724856362795,3.0,2508.4,2507.5,3.98793]
[1724856362796,3.98733,2508.0,2507.5,3.98793]
[1724856363035,7.97338,2508.4,2507.8,3.98752]
[1724856363230,0.45279678,2508.6,2507.6,0.55]
[1724856363538,3.9868,2508.3,2507.6,0.55]
[1724856363735,3.98718,2508.1,2507.6,0.55]
[1724856364031,3.98682,2508.3,2507.7,3.98767]
[1724856364236,3.98682,2508.3,2507.7,7.9753]
[1724856364445,3.98654,2508.5,2507.9,3.98737]
[1724856364596,0.61542788,2508.4,2506.3,3.9898]
[1724856364798,3.98774,2507.7,2506.6,7.97875]
[1724856364993,3.98841,2507.3,2506.6,3.98936]
[1724856365222,3.98979,2506.4,2505.8,3.99061]
[1724856365438,3.98979,2506.4,2505.8,4.389671]
[1724856365610,4.60491788,2506.6,2506.0,3.99028]
[1724856366139,3.98949,2506.6,2506.0,3.99028]
[1724856366341,3.9889,2507.0,2506.0,0.8379981]
[1724856366545,3.98908,2506.9,2506.1,3.99016]
[1724856366729,3.0,2507.1,2505.9,7.98094]
[1724856366933,3.98975,2506.5,2505.9,4.6739851]
[1724856367243,3.98961,2506.6,2505.9,4.6739551]
[1724856367454,3.98889,2507.0,2506.0,0.58709296]
[1724856367744,0.398841,2507.2,2506.1,0.10240694]
[1724856367930,7.9802,2506.2,2506.1,0.10240694]
[1724856368133,3.991,2505.7,2505.2,2.3769]
[1724856368463,3.99149,2505.4,2504.8,2.2987]
[1724856368607,7.98301,2505.4,2504.1,2.3845]
[1724856368934,7.98301,2505.4,2504.6,3.99252]
[1724856368935,3.99146,2505.4,2504.6,3.99252]
[1724856369254,3.99196,2505.1,2504.7,0.10337046]
[1724856369437,3.99232,2504.9,2504.7,0.10337046]
[1724856369622,7.98464,2504.9,2504.2,0.23845]
[1724856369820,7.58820507,2505.8,2503.5,2.4664]
[1724856369821,3.99185,2505.1,2503.5,2.4664]
[1724856370026,3.99243,2504.8,2503.5,2.4664]
[1724856370204,3.99207,2505.0,2504.4,3.99295]
[1724856370405,2.3641,2505.7,2504.5,4.0726457]
[1724856370741,2.3641,2505.7,2504.6,4.39990457]
[1724856370742,3.9918,2505.2,2504.6,4.39990457]
[1724856370948,3.99111,2505.6,2504.7,4.07219575]
[1724856371255,3.99139,2505.4,2504.7,3.99236]
[1724856371421,3.99139,2505.4,2504.8,3.99232]
[1724856371790,3.99256,2504.7,2504.4,2.4664]
[1724856371996,3.99256,2504.7,2503.9,6.34422]
[1724856372196,3.99293,2504.5,2503.9,6.34426]
[1724856372495,3.99293,2504.5,2503.9,2.3505]
[1724856372693,3.99256,2504.7,2504.0,0.07986131]
[1724856372845,3.99256,2504.7,2504.1,3.99332]
[1724856373262,3.99221,2504.9,2504.2,0.07985114]
[1724856373461,3.99221,2504.9,2504.2,4.09697483]
[1724856373690,3.99192,2505.1,2504.3,4.543]
[1724856373848,3.9922,2504.9,2504.3,4.543]
[1724856374367,3.99192,2505.1,2504.5,3.99268]
[1724856374561,3.99192,2505.1,2504.6,0.55]
[1724856374562,3.99204,2505.0,2504.6,0.55]
[1724856374798,4.40817,2505.3,2504.6,0.65668043]
[1724856374963,0.399111,2505.6,2504.7,0.07984156]
[1724856375151,3.9909,2505.7,2504.7,0.07984156]
[1724856375152,3.9909,2505.7,2504.8,0.55]
[1724856375512,3.99125,2505.5,2504.9,3.99203]
[1724856375812,3.99125,2505.5,2505.0,0.55]
[1724856376303,3.99158,2505.3,2505.1,0.10632933]
[1724856376813,3.99169,2505.2,2505.1,0.10632933]
[1724856377015,7.98338,2505.2,2505.1,0.10632933]
[1724856377179,7.98338,2505.2,2503.9,6.2754]
[1724856377180,7.98521,2504.7,2504.1,3.99333]
[1724856377373,1.040018,2505.1,2503.9,2.2817]
[1724856377585,1.040018,2505.1,2504.2,3.99318]
[1724856377586,3.99244,2504.8,2504.2,3.99318]
[1724856377787,3.99318,2504.3,2503.8,0.424112]
[1724856378011,4.040018,2505.1,2503.9,3.99376]
[1724856378012,3.99292,2504.5,2503.9,3.99376]
[1724856378512,7.98521,2504.7,2504.0,3.99359]
[1724856378694,3.99235,2504.8,2504.1,0.07985655]
[1724856378894,3.99224,2504.9,2504.2,3.99317]
[1724856379066,3.99248,2504.8,2504.2,3.99317]
[1724856379377,3.99308,2504.4,2503.8,3.99392]
[1724856379901,3.99366,2504.0,2503.5,2.2817]
[1724856380099,0.399308,2504.3,2503.5,2.2817]
[1724856380303,3.99322,2504.3,2503.7,3.99398]
[1724856380472,3.99307,2504.4,2503.8,3.99391]
[1724856380675,3.99322,2504.3,2503.7,3.99398]
[1724856381094,4.79165,2504.4,2503.7,7.98796]
[1724856381269,3.99307,2504.4,2503.8,0.55]
[1724856381466,3.99238,2504.8,2503.4,0.005]
[1724856381467,3.99409,2503.7,2503.4,0.005]
[1724856381914,3.9944,2503.5,2503.4,0.005]
[1724856382212,3.99427,2503.6,2503.4,0.005]
[1724856382362,3.99332,2504.2,2503.4,0.005]
[1724856382563,3.9942,2503.7,2503.4,0.005]
[1724856383036,3.9944,2503.5,2503.4,0.005]
[1724856383177,3.9942,2503.7,2503.4,0.005]
[1724856383380,3.99382,2503.9,2503.4,0.005]
[1724856383582,3.9944,2503.5,2503.4,0.005]
[1724856383967,7.9888,2503.5,2503.4,0.005]
[1724856384285,2.3257,2502.8,2500.4,6.31461]
[1724856384612,2.3257,2502.8,2500.5,0.18958209]
[1724856384613,2.3423,2501.7,2500.5,0.18958209]
[1724856384831,3.99764,2501.5,2500.7,3.99875]
[1724856385120,3.99713,2501.8,2500.9,3.99854]
[1724856385407,3.99713,2501.8,2501.0,0.4907537]
[1724856385408,3.99717,2501.8,2501.0,0.4907537]
[1724856385618,3.99756,2501.6,2501.0,0.10927955]
[1724856385789,3.99721,2501.8,2501.0,0.0799576]
[1724856385968,3.99642,2502.3,2501.5,3.99755]
[1724856386167,2.3382,2502.7,2501.6,0.399755]
[1724856386371,3.99728,2501.7,2501.6,0.11071519]
[1724856386601,3.99728,2501.7,2501.0,3.99838]
[1724856386858,3.99706,2501.9,2501.6,0.11071519]
[1724856387019,3.99682,2502.0,2501.2,0.399811]
[1724856387343,3.99748,2501.6,2500.8,3.99859]
[1724856387544,3.99748,2501.6,2500.7,3.99887]
[1724856387545,3.99651,2502.2,2501.4,3.99775]
[1724856387724,3.99665,2502.1,2501.4,4.07769029]
[1724856388067,3.99646,2502.3,2501.5,0.52042404]
[1724856388352,3.0,2502.5,2501.5,0.11265501]
[1724856388550,3.99729,2501.7,2501.0,3.99832]
[1724856388859,3.99756,2501.6,2501.0,0.43385143]
[1724856389067,3.99727,2501.8,2501.0,4.43224143]
[1724856389367,3.99653,2502.2,2501.4,3.99773]
[1724856389528,3.99665,2502.1,2501.2,3.99804]
[1724856390239,3.99696,2501.9,2501.3,0.55]
[1724856390418,3.99696,2501.9,2501.0,3.99834]
[1724856390419,3.9974,2501.7,2501.1,4.948064]
[1724856390627,3.9967,2502.1,2501.2,4.8926804]
[1724856390860,3.99707,2501.9,2501.3,1.13425144]
[1724856391637,0.933411,2502.5,2501.6,3.99729]
[1724856391638,3.9964,2502.3,2501.6,3.99729]
[1724856391879,3.9964,2502.3,2501.7,1.02966335]
[1724856392078,2.75520428,2502.7,2501.7,0.949729]
[1724856392378,3.99646,2502.3,2501.7,0.55]
[1724856393135,3.99548,2502.9,2502.2,3.99634]
[1724856393329,3.99548,2502.9,2501.8,21.90083262]
[1724856393330,2.4668,2503.6,2502.3,0.07991531]
[1724856393672,3.9957,2502.7,2502.1,3.99652]
[1724856393857,7.99151,2502.7,2502.1,3.99652]
[1724856394036,3.99576,2502.7,2501.9,3.99683]
[1724856394238,3.9948,2503.3,2502.0,4.54674]
[1724856394428,0.41665421,2503.5,2502.1,0.517252]
[1724856394429,4.41113421,2503.5,2502.1,0.517252]
[1724856394632,3.99448,2503.5,2502.8,3.9955]
[1724856394987,3.99448,2503.5,2502.4,7.99214]
[1724856394988,3.99515,2503.1,2502.4,7.99214]
[1724856395134,3.99515,2503.1,2502.5,4.49589]
[1724856395334,3.99515,2503.1,2502.4,3.99605]
[1724856395533,3.9948,2503.3,2502.6,3.99569]
[1724856395764,3.9948,2503.3,2502.7,4.07547521]
[1724856395959,3.9948,2503.3,2502.6,3.99569]
[1724856396164,3.9949,2503.2,2502.6,3.99569]
[1724856396792,3.9948,2503.3,2502.6,3.99569]
[1724856396982,3.9948,2503.3,2502.6,4.8584196]
[1724856397150,3.99514,2503.1,2502.5,3.99594]
[1724856397484,0.50143905,2503.8,2502.6,4.54575]
[1724856397485,3.99472,2503.3,2502.6,4.54575]
[1724856397984,3.9941,2503.7,2502.7,0.07990151]
[1724856398146,0.39941,2503.6,2502.9,3.99522]
[1724856398474,3.99441,2503.5,2502.7,3.99559]
[1724856398635,3.99441,2503.5,2502.8,0.55]
[1724856398835,3.99476,2503.3,2502.8,0.55]
[1724856399038,7.98894,2503.5,2502.8,4.54543]
[1724856399371,3.99459,2503.4,2502.8,4.54543]
[1724856399876,7.98895,2503.5,2502.9,3.99535]
[1724856400231,3.99441,2503.5,2502.9,3.99535]
[1724856400432,3.99473,2503.3,2502.8,0.55]
[1724856400692,3.99441,2503.5,2502.9,3.99535]
[1724856400840,3.99441,2503.5,2502.9,7.9907]
[1724856401037,3.99441,2503.5,2502.9,3.99527]
[1724856401241,4.41044961,2503.9,2503.0,0.07989871]
[1724856401577,3.99322,2504.3,2503.7,3.99397]
[1724856401735,2.2785,2504.5,2503.5,3.99432]
[1724856401736,3.99354,2504.1,2503.5,3.99432]
[1724856401960,7.98713,2504.1,2503.5,3.99432]
[1724856402196,3.99286,2504.5,2503.5,0.07987726]
[1724856402512,3.99261,2504.7,2504.2,3.99317]
[1724856402802,3.99227,2504.9,2504.3,0.0798614]
[1724856402959,6.72419271,2505.3,2504.6,3.99251]
[1724856403160,0.06938885,2505.8,2505.1,3.99176]
[1724856403396,3.99093,2505.7,2505.1,3.99185]
[1724856403555,3.99093,2505.7,2505.2,0.10771918]
[1724856403759,0.49768368,2505.7,2505.2,0.10771918]
[1724856403999,0.51259456,2505.7,2505.4,3.99137]
[1724856404168,3.99036,2506.1,2505.5,3.99113]
[1724856404373,0.49768368,2506.2,2505.7,3.99077]
[1724856404561,0.68037437,2506.2,2505.6,0.1064438]
[1724856404759,3.99026,2506.1,2505.8,0.10553294]
[1724856404958,3.99026,2506.1,2505.5,3.99111]
[1724856404959,0.9158278,2506.1,2505.5,3.99111]
[1724856405196,4.9061178,2506.1,2505.9,0.10546414]
[1724856405460,4.9061178,2506.1,2505.5,3.99111]
[1724856405461,3.99029,2506.1,2505.5,3.99111]
[1724856405798,3.99029,2506.1,2503.6,1.35565273]
[1724856405799,3.99088,2505.8,2504.8,2.3431]
[1724856406108,3.99148,2505.4,2504.7,23.55236]
[1724856406272,3.99178,2505.2,2504.5,23.55272]
[1724856406464,0.46577784,2505.7,2504.4,19.56]
[1724856406465,3.99227,2504.9,2504.4,19.56]
[1724856406664,0.79843,2504.9,2504.4,19.56]
[1724856406981,3.99176,2505.2,2504.6,3.99251]
[1724856407203,3.99223,2504.9,2504.4,23.55292]
[1724856407362,2.818643,2505.3,2504.0,23.55345]
[1724856407561,2.818643,2505.3,2504.1,3.9933]
[1724856407562,7.98482,2504.8,2504.1,3.9933]
[1724856407898,3.99307,2504.4,2503.8,3.99383]
[1724856408120,3.99361,2504.0,2503.4,3.99447]
[1724856408276,3.99361,2504.0,2503.2,23.55475]
[1724856408609,3.9942,2503.7,2503.2,19.56]
[1724856409576,3.99442,2503.5,2503.2,19.56]
[1724856409763,5.88827584,2503.9,2503.2,19.56]
[1724856409961,3.9946,2503.4,2502.7,11.29562]
[1724856410166,3.9946,2503.4,2502.7,3.99562]
[1724856410468,3.99428,2503.6,2502.9,3.99535]
[1724856410667,3.99428,2503.6,2503.0,4.07507635]
[1724856410668,4.45259076,2503.6,2503.0,4.07507635]
[1724856410899,4.45259076,2503.6,2503.0,0.07989635]
[1724856411256,0.45831076,2503.6,2503.2,3.99487]
[1724856411497,4.58282758,2503.8,2503.3,3.9946]
[1724856411498,0.58882758,2503.8,2503.3,3.9946]
[1724856411710,3.99332,2504.2,2503.3,19.56]
[1724856411993,7.98737,2504.0,2503.4,0.65423732]
[1724856412205,3.99428,2503.6,2503.4,0.10423732]
[1724856412372,3.99395,2503.8,2503.4,0.10423732]
[1724856412555,3.99395,2503.8,2503.2,0.07988923]
[1724856412757,3.99366,2504.0,2503.2,0.07988923]
[1724856412758,3.99366,2504.0,2503.5,0.10416155]
[1724856413010,3.99366,2504.0,2503.2,3.99478]
[1724856413207,3.99345,2504.1,2503.4,3.99443]
[1724856413426,3.99361,2504.0,2503.4,3.99443]
[1724856413703,3.99335,2504.2,2503.6,3.99424]
[1724856413911,3.993,2504.4,2503.5,0.10403851]
[1724856414120,4.791568,2504.4,2503.7,0.65377763]
[1724856414262,3.99329,2504.2,2503.8,0.10370872]
[1724856414609,3.99422,2503.7,2503.1,3.99498]
[1724856414763,2.77949961,2504.8,2502.7,2.3303]
[1724856414764,6.26499,2504.0,2502.7,6.32587]
[1724856414966,6.26499,2504.0,2502.8,26.86]
[1724856414967,3.99425,2503.6,2502.8,26.86]
[1724856415164,3.99398,2503.8,2502.9,0.07989248]
[1724856415360,3.0,2504.3,2502.9,4.07517248]
[1724856415659,3.99413,2503.7,2503.1,3.99504]
[1724856415896,3.99461,2503.4,2502.8,26.86]
[1724856416106,3.99461,2503.4,2502.7,6.32588]
[1724856416270,3.99429,2503.6,2502.7,3.99556]
[1724856416483,3.99442,2503.5,2502.9,3.99525]
[1724856416668,6.99368,2504.0,2502.6,23.55578]
[1724856416865,0.3699304,2504.1,2502.7,21.516]
[1724856417060,3.9945,2503.5,2502.8,3.99542]
[1724856417267,3.99413,2503.7,2503.0,3.99505]
[1724856417688,3.99443,2503.5,2502.8,3.99541]
[1724856418001,3.99466,2503.4,2502.9,0.55]
[1724856418208,4.793286,2503.5,2502.9,3.99536]
[1724856418513,3.0,2504.3,2503.0,0.10426018]
[1724856418806,3.99419,2503.7,2503.0,0.10426018]
[1724856418975,3.99419,2503.7,2503.1,3.99499]
[1724856419176,3.0,2504.1,2503.0,0.10426018]
[1724856419177,6.99351,2504.1,2503.0,0.10426018]
[1724856419379,3.99399,2503.8,2503.2,0.10412228]
[1724856419588,3.99437,2503.6,2503.1,0.10419123]
[1724856419780,0.399399,2503.7,2503.2,3.99488]
[1724856420113,3.9941,2503.7,2503.2,0.10412228]
[1724856420417,3.99386,2503.9,2503.3,3.99457]
[1724856420633,3.99323,2504.3,2503.7,3.99397]
[1724856420832,3.99425,2503.6,2503.3,0.10518741]
[1724856421124,3.99434,2503.6,2503.1,19.56]
[1724856421372,3.99406,2503.8,2503.1,23.55502]
[1724856421630,4.641287,2504.0,2503.1,19.56]
[1724856421839,3.99453,2503.5,2503.1,19.56]
[1724856422228,3.99369,2504.0,2503.1,19.56]
[1724856422229,3.99457,2503.4,2503.1,19.56]
[1724856422436,4.394277,2503.3,2503.1,19.56]
[1724856422593,7.9887,2503.6,2503.1,19.56]
[1724856422934,3.99432,2503.6,2503.1,19.56]
[1724856423117,3.99422,2503.7,2503.1,19.56]
[1724856423319,3.99392,2503.8,2503.2,4.07468763]
[1724856423518,4.54191,2504.0,2503.3,0.62988365]
[1724856423703,3.99427,2503.6,2503.0,3.9951]
[1724856423910,3.99427,2503.6,2503.1,0.07988966]
[1724856424214,3.99403,2503.8,2503.1,0.07988966]
[1724856424215,3.99403,2503.8,2503.2,7.98966]
[1724856424521,4.393343,2503.8,2503.3,4.07459545]
[1724856424841,4.393343,2503.8,2503.3,0.07988545]
[1724856424986,4.393343,2503.8,2503.3,4.07451545]
[1724856425196,3.99367,2504.0,2503.5,3.99438]
[1724856425393,6.30986,2504.5,2503.4,6.25486]
[1724856425394,2.317,2504.5,2503.4,6.25486]
[1724856425631,3.99376,2503.9,2503.4,3.99446]
[1724856425935,3.99345,2504.1,2503.6,3.99423]
[1724856426118,2.317,2504.5,2503.7,3.99408]
[1724856426119,3.99329,2504.2,2503.7,3.99408]
[1724856426437,0.63097,2504.4,2503.5,0.55]
[1724856426732,3.9934,2504.2,2503.6,3.99414]
[1724856426941,0.798664,2504.1,2503.6,7.98828]
[1724856427138,0.798664,2504.1,2503.7,0.55]
[1724856427936,0.798664,2504.1,2503.2,19.56]
[1724856427937,3.99397,2503.8,2503.2,19.56]
[1724856428152,3.99428,2503.6,2503.2,19.56]
[1724856428446,3.99416,2503.7,2503.2,23.55485]
[1724856428651,3.99404,2503.8,2503.2,27.54965]
[1724856428805,0.4792064,2504.0,2503.2,19.56]
[1724856428806,3.99436,2503.6,2503.2,19.56]
[1724856429162,3.99499,2503.2,2502.6,23.55575]
[1724856429303,3.99431,2503.6,2503.0,3.99519]
[1724856429504,3.99431,2503.6,2502.7,19.63990022]
[1724856429505,3.99456,2503.4,2502.8,4.07527406]
[1724856429726,0.399431,2503.5,2503.0,3.99519]
[1724856429934,3.99431,2503.6,2503.1,0.07989185]
[1724856430323,4.4729164,2504.0,2503.4,3.99455]
[1724856430553,3.99377,2503.9,2503.4,3.99455]
[1724856430716,3.99333,2504.2,2503.6,3.99414]
[1724856430921,3.99333,2504.2,2503.7,4.62383857]
[1724856431134,3.99333,2504.2,2503.8,0.07986857]
[1724856431336,3.99333,2504.2,2503.7,4.54407]
[1724856431714,3.99354,2504.1,2503.4,3.99449]
[1724856431952,7.98711,2504.1,2503.5,0.55]
[1724856432156,3.99321,2504.3,2503.6,3.99422]
[1724856432450,3.99321,2504.3,2503.7,3.99408]
[1724856432451,3.99331,2504.2,2503.7,3.99408]
[1724856432607,3.99289,2504.5,2504.0,3.99359]
[1724856432965,3.99335,2504.2,2503.5,0.55]
[1724856433114,3.99418,2503.7,2503.0,6.3118]
[1724856433311,0.24795,2504.7,2503.2,3.99485]
[1724856433312,3.99364,2504.0,2503.2,3.99485]
[1724856433536,3.99337,2504.2,2503.4,3.99454]
[1724856433740,3.99394,2503.8,2503.5,0.10470097]
[1724856433936,3.99394,2503.8,2503.1,3.99499]
[1724856433937,3.99424,2503.6,2503.1,3.99499]
[1724856434121,3.99424,2503.6,2503.2,0.10490094]
[1724856434319,4.393724,2503.6,2503.2,0.10490094]
[1724856434527,8.388104,2503.6,2502.9,3.99523]
[1724856434808,2.3091,2504.0,2502.5,2.4481]
[1724856434809,3.994,2503.8,2503.0,0.18493274]
[1724856435011,3.99368,2504.0,2503.3,3.99472]
[1724856435211,3.99336,2504.2,2503.6,3.99424]
[1724856435521,0.672,2504.6,2503.6,3.99424]
[1724856435522,3.99314,2504.3,2503.8,3.99392]
[1724856435730,3.99314,2504.3,2503.7,0.10471349]
[1724856435731,3.99329,2504.2,2503.7,0.10471349]
[1724856435934,4.392454,2504.3,2503.8,3.99392]
[1724856436276,3.99263,2504.7,2503.9,0.1045825]
[1724856436409,2.96559961,2504.9,2503.9,0.1045825]
[1724856436410,3.99223,2504.9,2504.3,3.99312]
[1724856436609,0.69575196,2504.9,2504.5,3.99269]
[1724856436825,4.40768955,2505.5,2504.7,3.9924]
[1724856437029,3.99101,2505.7,2505.1,3.99175]
[1724856437211,0.52059961,2505.7,2505.1,3.99172]
[1724856437410,0.52059961,2505.7,2505.2,0.10339334]
[1724856437411,4.44213696,2505.7,2505.2,0.10339334]
[1724856437621,3.99091,2505.7,2505.2,0.10339334]
[1724856437826,3.99125,2505.5,2505.2,0.10339334]
[1724856438024,3.99125,2505.5,2504.7,6.39068]
[1724856438239,3.99125,2505.5,2504.3,6.3913]
[1724856438240,3.99213,2505.0,2504.3,6.3913]
[1724856438422,0.399213,2504.9,2504.3,6.3913]
[1724856438774,3.99202,2505.0,2504.5,3.99279]
[1724856438933,0.399125,2505.4,2504.6,3.99262]
[1724856438934,4.390495,2505.4,2504.6,3.99262]
[1724856439259,4.390495,2505.4,2504.6,4.54262]
[1724856439474,3.99147,2505.4,2504.8,3.9922]
[1724856439613,3.99147,2505.4,2504.6,4.54255]
[1724856439814,2.486,2505.8,2504.4,3.99289]
[1724856439815,0.399147,2505.3,2504.4,3.99289]
[1724856440054,3.99207,2505.0,2504.4,3.99289]
[1724856440211,3.99115,2505.6,2504.8,3.99219]
[1724856440411,2.486,2505.8,2505.1,3.99172]
[1724856440651,3.99046,2506.0,2505.2,0.07982668]
[1724856440959,4.43111436,2506.0,2505.1,3.99177]
[1724856441167,4.43111436,2506.0,2504.3,3.99312]
[1724856441168,3.99159,2505.3,2504.3,3.99312]
[1724856441367,3.99182,2505.2,2504.5,3.99269]
[1724856441665,3.99181,2505.2,2504.5,3.99269]
[1724856441838,3.99181,2505.2,2504.6,3.99249]
[1724856442035,3.99181,2505.2,2504.5,3.99268]
[1724856442254,3.99227,2504.9,2504.4,19.56]
[1724856442455,4.47394961,2505.1,2503.7,2.2611]
[1724856442762,3.99262,2504.7,2503.7,2.2611]
[1724856442916,3.99262,2504.7,2504.1,3.9933]
[1724856443120,3.99226,2504.9,2504.2,0.07985668]
[1724856443319,3.99204,2505.0,2504.4,3.99283]
[1724856443556,3.99249,2504.7,2504.0,7.98702]
[1724856443860,3.99218,2504.9,2504.3,3.9931]
[1724856444656,7.98447,2504.9,2504.2,3.99314]
[1724856444824,3.99234,2504.8,2504.2,3.99314]
[1724856445023,3.99263,2504.7,2503.8,23.55384]
[1724856445331,7.98511,2504.7,2504.0,3.99345]
[1724856445532,3.99266,2504.6,2504.0,3.99345]
[1724856445742,3.99298,2504.4,2503.6,3.99412]
[1724856445971,3.99362,2504.0,2503.4,7.9889]
[1724856446270,6.99291,2504.5,2503.7,3.99407]
[1724856446579,7.98583,2504.5,2503.8,3.99383]
[1724856446747,3.99258,2504.7,2503.9,3.99367]
[1724856446926,3.0,2504.6,2503.7,3.99399]
[1724856447132,3.99218,2504.9,2504.4,3.99288]
[1724856447540,3.99196,2505.1,2504.4,3.99285]
[1724856447747,4.73905196,2505.2,2504.6,3.99254]
[1724856448057,4.928615,2505.6,2504.5,3.99276]
[1724856448058,3.99187,2505.1,2504.5,3.99276]
[1724856448228,3.99126,2505.5,2504.6,3.99262]
[1724856448229,3.99161,2505.3,2504.6,3.99262]
[1724856448425,3.99161,2505.3,2504.7,0.55]
[1724856448630,3.99203,2505.0,2504.6,0.09922747]
[1724856448960,3.99217,2504.9,2504.7,0.09915861]
[1724856449277,4.3324115,2505.5,2504.9,3.99216]
[1724856449432,3.99081,2505.8,2505.3,3.99151]
[1724856449632,0.44068836,2505.9,2505.4,4.07119083]
[1724856449872,3.99027,2506.1,2505.5,0.07981286]
[1724856450358,6.88024489,2506.5,2505.5,0.07981286]
[1724856450359,3.98984,2506.4,2505.6,0.0980347]
[1724856450560,0.46984799,2506.8,2506.2,3.99001]
[1724856450561,3.98923,2506.8,2506.2,3.99001]
[1724856450743,3.98969,2506.5,2506.3,0.09755315]
[1724856450949,6.46276,2507.2,2505.7,0.55]
[1724856450950,3.98953,2506.6,2506.0,3.99029]
[1724856451171,3.98953,2506.6,2506.4,0.09710289]
[1724856451381,3.98921,2506.8,2506.2,3.99009]
[1724856451679,3.98921,2506.8,2505.6,3.99101]
[1724856451680,11.96838,2506.6,2506.5,0.09703412]
[1724856451972,3.99053,2506.0,2505.4,6.29918]
[1724856452177,3.99016,2506.2,2505.5,0.55]
[1724856452383,3.99038,2506.1,2505.5,4.63848707]
[1724856452677,3.99084,2505.8,2505.5,0.64732707]
[1724856452862,3.99084,2505.8,2505.5,0.09732707]
[1724856453187,3.99051,2506.0,2505.5,0.09732707]
[1724856453339,3.99011,2506.2,2505.6,0.09664529]
[1724856453672,3.99035,2506.1,2505.6,0.09664529]
[1724856454034,3.99035,2506.1,2505.3,3.99142]
[1724856454035,3.99058,2505.9,2505.3,3.99142]
[1724856454243,3.99044,2506.0,2505.7,0.09657648]
[1724856454438,3.99044,2506.0,2505.4,4.54132]
[1724856454637,3.99,2506.3,2505.8,0.09650768]
[1724856454866,1.5294278,2506.9,2505.8,6.44111]
[1724856454867,3.98973,2506.5,2505.8,6.44111]
[1724856455080,3.98973,2506.5,2505.9,0.55]
[1724856455259,8.48330398,2506.9,2506.2,3.99]
[1724856455584,3.98972,2506.5,2506.3,0.09639524]
[1724856455874,3.98962,2506.5,2506.3,0.09639524]
[1724856456074,3.98978,2506.4,2505.9,4.54048]
[1724856456287,3.98962,2506.5,2506.0,3.99041]
[1724856456586,3.99005,2506.3,2505.9,0.55]
[1724856456786,3.99005,2506.3,2505.9,20.11]
[1724856456989,3.98968,2506.5,2505.9,20.11]
[1724856457138,3.98968,2506.5,2505.9,28.09103]
[1724856457337,3.98917,2506.8,2506.3,3.98989]
[1724856457535,0.646276,2507.1,2506.0,0.07978555]
[1724856457536,3.98941,2506.7,2506.0,0.07978555]
[1724856457837,3.98884,2507.0,2505.9,0.55]
[1724856458037,3.98988,2506.4,2505.9,0.55]
[1724856458282,3.99029,2506.1,2505.9,0.55]
[1724856458518,0.398884,2506.9,2505.9,0.55]
[1724856458519,3.99001,2506.3,2505.9,0.55]
[1724856458883,3.98971,2506.5,2505.9,4.54056]
[1724856459286,3.98971,2506.5,2505.9,0.55]
[1724856459585,4.4281674,2506.7,2506.0,3.99033]
[1724856459823,3.98972,2506.5,2506.1,0.55]
[1724856460027,3.98987,2506.4,2505.8,6.44121]
[1724856460245,3.98987,2506.4,2505.9,0.55]
[1724856460380,7.97948,2506.5,2505.9,4.54048]
[1724856460727,3.98972,2506.5,2505.9,4.54048]
[1724856460893,7.97944,2506.5,2505.9,4.54048]
[1724856461095,7.97944,2506.5,2505.4,3.99132]
[1724856461096,0.797944,2506.5,2505.4,2.2747]
[1724856461297,0.797944,2506.5,2504.5,5.88827584]
[1724856461298,3.99097,2505.7,2505.0,3.99186]
[1724856461516,3.99097,2505.7,2505.1,2.2747]
[1724856461934,3.99154,2505.3,2504.7,2.2895]
[1724856462110,3.99181,2505.2,2504.7,2.2895]
[1724856462624,3.99145,2505.4,2504.8,0.07983637]
[1724856462842,3.99116,2505.6,2505.0,3.99188]
[1724856463325,3.9908,2505.8,2505.1,0.09722772]
[1724856463533,3.99047,2506.0,2505.2,0.55]
[1724856463698,3.99146,2505.4,2504.7,2.2895]
[1724856463882,3.99146,2505.4,2505.3,0.09709006]
[1724856464088,3.99146,2505.4,2504.7,2.2895]
[1724856464089,3.99081,2505.8,2505.0,3.99199]
[1724856464433,3.99076,2505.8,2505.2,3.99156]
[1724856464584,3.99122,2505.5,2505.1,0.09722772]
[1724856464782,3.99218,2504.9,2504.2,3.99322]
[1724856465028,3.99179,2505.2,2504.5,3.99271]
[1724856465186,3.99249,2504.7,2504.3,2.2895]
[1724856465588,3.99223,2504.9,2504.4,0.07985083]
[1724856465799,3.99232,2504.9,2504.3,2.2895]
[1724856466010,3.99246,2504.8,2504.3,2.2895]
[1724856466242,3.99232,2504.9,2504.3,2.36934729]
[1724856466539,3.99232,2504.9,2504.3,2.917788]
[1724856466913,3.99158,2505.3,2503.8,2.2804]